bitfinex/quotes_ETHUSD_20220218
["timestamp","ask_amount","ask_price","bid_price","bid_amount"]
[1645185754710,0.1739,2875.6,2874.0,6.47301067]
[1645185754711,0.8699943,2875.6,2874.0,8.99711067]
[1645185754912,0.6739,2875.8,2874.3,6.5]
[1645185754913,0.1739,2875.8,2874.3,6.5]
[1645185755112,0.04358247,2875.9,2874.3,6.5]
[1645185755113,0.04358247,2875.9,2874.8,5.0]
[1645185755316,0.08716494,2876.4,2875.1,6.5]
[1645185755510,0.08716494,2876.4,2875.7,0.87596853]
[1645185755710,1.58698707,2876.9,2875.7,0.87596853]
[1645185755910,0.21738247,2876.9,2875.7,0.87596853]
[1645185756361,0.21738247,2876.9,2875.8,3.5]
[1645185756567,0.04358247,2876.9,2876.8,0.92405762]
[1645185756961,0.1738,2877.8,2876.8,0.92405762]
[1645185757359,0.1736,2878.5,2876.8,2.63175762]
[1645185757660,6.59070395,2879.3,2876.8,2.63175762]
[1645185757857,0.1737,2878.8,2877.9,1.71804109]
[1645185758063,0.1737,2878.8,2878.1,0.77039605]
[1645185758256,0.1737,2878.8,2877.4,0.3955]
[1645185758457,0.1736,2878.9,2877.9,0.77039605]
[1645185758657,1.042728,2878.9,2877.9,0.77039605]
[1645185759067,1.26164478,2878.9,2877.9,0.77039605]
[1645185759262,0.00241638,2878.5,2877.9,0.77039605]
[1645185759663,0.00241638,2878.5,2877.8,0.96716209]
[1645185759863,0.00241638,2878.5,2877.9,0.77039605]
[1645185760105,0.00241638,2878.5,2877.8,0.96716209]
[1645185760309,0.1736,2878.9,2878.3,0.77039605]
[1645185760310,0.86907,2878.9,2878.3,0.77039605]
[1645185760509,0.13819997,2879.4,2877.9,0.1734]
[1645185760510,0.00241645,2878.3,2877.9,0.1734]
[1645185760707,0.00241645,2878.3,2878.2,0.77039605]
[1645185761506,0.03047001,2878.5,2878.2,0.77039605]
[1645185761715,0.03047001,2878.5,2878.1,0.3679]
[1645185761716,0.00131481,2878.4,2878.3,1.01154767]
[1645185761907,0.00131481,2878.4,2878.3,1.78194372]
[1645185762507,0.03047001,2878.5,2878.3,1.78194372]
[1645185762918,0.03178482,2878.5,2878.3,1.78194372]
[1645185763116,0.02918482,2878.5,2878.3,1.78194372]
[1645185763315,0.1736,2879.9,2878.4,6.6736]
[1645185763316,3.5,2879.9,2878.4,6.6736]
[1645185763511,0.18742803,2880.0,2879.1,0.77039605]
[1645185764057,0.18742803,2880.0,2879.0,0.8351]
[1645185764266,0.5,2880.8,2879.7,4.77039605]
[1645185764462,11.55336212,2882.2,2879.8,10.0]
[1645185764668,6.08189015,2882.7,2881.2,6.255]
[1645185764669,1.72128621,2882.7,2881.2,6.255]
[1645185764862,2.15188,2883.6,2881.3,10.0]
[1645185765064,7.91856478,2884.4,2881.3,10.0]
[1645185765065,3.47318,2883.9,2881.9,0.01253573]
[1645185765270,1.29172657,2883.6,2882.8,0.01298763]
[1645185765470,3.81114956,2884.7,2883.5,6.255]
[1645185765471,0.01033488,2884.7,2883.5,6.255]
[1645185765668,0.01033488,2884.7,2884.6,6.255]
[1645185765866,0.02183059,2884.8,2884.6,6.255]
[1645185765867,0.26315122,2884.8,2884.6,0.5]
[1645185766066,0.44561588,2885.5,2884.6,0.5]
[1645185766067,0.5,2884.9,2884.6,0.5]
[1645185766265,2.16163462,2885.5,2884.6,0.5]
[1645185766266,0.4587671,2885.5,2884.6,0.5]
[1645185766468,6.338e-05,2884.9,2884.7,1.13611569]
[1645185766670,6.338e-05,2884.9,2884.8,0.5]
[1645185766867,6.338e-05,2884.9,2884.8,5.5]
[1645185767061,32.03898004,2885.6,2884.9,6.5]
[1645185767265,2.76141467,2885.6,2885.0,0.5]
[1645185767474,0.0190469,2886.3,2885.5,5.01268129]
[1645185767475,0.00589568,2886.3,2885.5,5.01268129]
[1645185767711,0.00966412,2885.8,2885.6,0.5]
[1645185767911,1.71601874,2887.8,2885.6,0.5]
[1645185767912,0.00516424,2887.1,2885.8,5.0]
[1645185768116,0.01179136,2886.3,2886.2,5.0]
[1645185768312,0.01179136,2886.3,2886.2,5.5]
[1645185768515,0.00516424,2887.1,2886.2,5.5]
[1645185768713,0.00516424,2887.1,2886.6,5.0]
[1645185768913,0.13819997,2887.7,2886.1,5.7739]
[1645185769112,0.00516424,2887.6,2886.2,3.6731]
[1645185769320,0.00516424,2888.2,2887.5,5.0]
[1645185769624,0.01737852,2888.4,2887.1,0.2412]
[1645185769814,0.5,2888.2,2887.5,0.8895]
[1645185770017,0.5,2888.2,2887.6,0.1731]
[1645185770217,0.00516424,2888.1,2887.4,0.1731]
[1645185770416,0.00516424,2888.1,2885.9,1.49846934]
[1645185770618,0.5,2888.0,2886.3,5.0]
[1645185771014,0.00516424,2887.9,2886.3,5.0]
[1645185771219,1.01617845,2887.2,2886.3,5.0]
[1645185771470,0.5,2887.1,2886.1,5.0]
[1645185771671,0.50516424,2887.1,2885.6,5.0]
[1645185771876,0.50516424,2887.1,2884.6,0.31016934]
[1645185771877,0.01286681,2886.8,2884.8,0.1731]
[1645185772072,5.0,2886.2,2883.8,3.6731]
[1645185772280,6.255,2885.9,2883.8,0.18560279]
[1645185772474,0.95593811,2884.5,2883.6,3.6733]
[1645185772675,1.25593811,2884.5,2883.6,0.1733]
[1645185772873,1.25593811,2884.5,2883.0,3.5]
[1645185772874,1.55593811,2884.5,2883.0,3.5]
[1645185773070,0.5,2884.4,2882.7,3.5]
[1645185773275,0.1355,2884.4,2883.0,0.0122846]
[1645185773478,0.5,2884.9,2883.7,0.01284164]
[1645185773676,1.0,2885.8,2883.7,0.01284164]
[1645185773677,0.5,2885.0,2883.7,0.01284164]
[1645185773875,0.5,2885.0,2883.2,3.5]
[1645185774073,0.5,2885.0,2883.4,0.00242454]
[1645185774276,0.1355,2884.9,2883.4,0.00242454]
[1645185774478,0.5,2884.9,2883.4,3.5154011]
[1645185774676,0.01284964,2886.5,2883.4,3.5154011]
[1645185774677,0.1355,2885.8,2883.4,3.51297656]
[1645185774885,19.71438197,2887.5,2884.1,0.01291394]
[1645185774886,0.50516424,2885.7,2884.1,0.01291394]
[1645185775122,0.00241544,2885.9,2884.2,0.34532]
[1645185775318,0.00516424,2885.6,2884.8,1.00026929]
[1645185775525,0.00241544,2885.9,2885.0,0.8667]
[1645185775724,0.00241544,2885.9,2885.1,4.36648]
[1645185775922,0.00516424,2886.4,2885.2,0.86648]
[1645185776123,0.00130853,2885.9,2885.2,1.0]
[1645185776725,0.00130853,2885.9,2885.0,1.0]
[1645185776922,0.00130853,2885.9,2885.0,3.5]
[1645185777127,0.00516424,2886.3,2885.3,1.1566933]
[1645185777326,0.00130853,2885.9,2885.4,3.5]
[1645185777530,0.00130853,2885.9,2885.3,2.1195933]
[1645185777725,0.00130853,2885.9,2885.6,0.86647]
[1645185778025,0.00130853,2885.9,2885.7,0.1732]
[1645185778224,0.00516424,2887.3,2885.7,0.1732]
[1645185778427,0.00516424,2887.3,2885.7,4.53949]
[1645185778624,0.00242866,2885.9,2885.8,5.0]
[1645185778868,0.00242866,2885.9,2885.8,1.9731]
[1645185779060,2.866e-05,2885.9,2885.8,5.4731]
[1645185779258,2.866e-05,2885.9,2885.8,4.4731]
[1645185779459,0.00516424,2887.3,2885.8,5.81842]
[1645185779664,0.00516424,2888.0,2886.2,0.2531]
[1645185779867,0.51321996,2888.5,2886.3,0.4731]
[1645185780169,0.51321996,2888.5,2886.4,3.5]
[1645185780170,0.02254276,2888.4,2886.4,3.5]
[1645185780362,0.52254276,2888.4,2886.5,0.1731]
[1645185780560,0.85207693,2888.2,2887.0,1.10816149]
[1645185780762,0.00516424,2888.1,2887.1,0.1731]
[1645185780964,0.00130295,2887.6,2887.1,0.1731]
[1645185781165,2.95e-06,2887.6,2887.1,3.6731]
[1645185781374,0.00521103,2888.0,2887.6,0.0039059]
[1645185781568,0.00521103,2888.0,2887.7,0.1731]
[1645185781764,0.01321996,2888.5,2887.8,6.5]
[1645185781967,0.00516424,2889.4,2888.1,1.73122]
[1645185782162,0.00516424,2889.9,2888.2,0.1729]
[1645185782365,0.5,2890.2,2888.2,0.1729]
[1645185782366,0.00516424,2889.7,2888.2,0.1729]
[1645185782617,0.5,2890.2,2888.1,1.73122]
[1645185782618,0.5,2889.8,2888.1,0.1729]
[1645185782820,5.0,2889.9,2887.7,1.7425]
[1645185782821,0.6338,2889.6,2887.7,1.7425]
[1645185783014,0.5,2889.5,2887.7,1.7425]
[1645185783218,5.0,2889.2,2887.6,0.0039059]
[1645185783416,1.64016424,2889.1,2887.6,0.0039059]
[1645185783822,0.93492054,2888.6,2887.6,0.0039059]
[1645185784020,0.00516424,2888.5,2887.6,0.0039059]
[1645185784223,0.00516424,2889.0,2887.6,0.88241414]
[1645185784421,0.13819997,2890.2,2888.1,0.86567]
[1645185784422,0.00516424,2889.3,2888.1,0.86567]
[1645185784620,0.5,2889.8,2888.2,1.5787]
[1645185785026,0.87758912,2889.2,2888.2,1.5787]
[1645185785223,0.87758912,2889.2,2887.6,3.5039059]
[1645185785224,0.50516424,2889.1,2887.6,3.5039059]
[1645185785624,0.50516424,2889.1,2887.6,0.0039059]
[1645185785822,0.00129629,2888.5,2887.6,0.0039059]
[1645185786026,1.17830128,2888.5,2887.6,0.0039059]
[1645185786221,0.00516424,2888.4,2887.6,0.0039059]
[1645185787060,1.0,2889.4,2887.6,0.0039059]
[1645185787061,0.00243685,2888.1,2887.6,0.0039059]
[1645185787667,0.00243685,2888.1,2886.4,4.0908]
[1645185787668,6.5,2888.0,2886.2,1.76937766]
[1645185787872,6.5,2888.0,2885.0,2.3332]
[1645185787873,6.255,2886.4,2885.0,2.3332]
[1645185788074,6.255,2886.4,2884.5,0.34621]
[1645185788075,10.50516424,2886.3,2884.3,0.52983677]
[1645185788269,10.50516424,2886.3,2884.5,0.39560493]
[1645185788270,0.228,2885.4,2884.5,0.39560493]
[1645185788465,0.228,2885.4,2882.8,3.09839422]
[1645185788466,0.25,2885.2,2883.2,30.42219351]
[1645185788666,0.25,2885.2,2883.2,29.64357005]
[1645185788868,0.25,2885.2,2882.8,3.09839422]
[1645185788869,6.255,2883.3,2882.8,3.09839422]
[1645185789070,0.25,2883.3,2882.2,0.47181]
[1645185789271,0.25,2883.3,2881.5,10.0]
[1645185789272,6.255,2882.3,2881.5,10.0]
[1645185789475,6.255,2881.6,2880.2,0.01235547]
[1645185789670,0.6532,2882.4,2879.3,0.47181]
[1645185789671,1.8778,2881.7,2881.6,3.15318679]
[1645185789866,9.50101,2881.7,2881.6,3.15318679]
[1645185790310,1.6278,2881.7,2881.6,3.15318679]
[1645185790718,1.10328186,2882.0,2881.6,3.15318679]
[1645185790920,1.10328186,2882.0,2881.7,3.5]
[1645185791112,1.10328186,2882.0,2881.6,3.15318679]
[1645185791312,1.0,2883.2,2881.6,3.15318679]
[1645185791313,0.86778,2882.8,2881.6,3.15318679]
[1645185791522,3.5912049,2883.4,2881.7,3.5]
[1645185791523,2.74262997,2883.4,2881.7,3.5]
[1645185791724,0.25,2883.3,2881.9,0.01218354]
[1645185791921,0.25,2883.9,2882.6,0.01298147]
[1645185792121,0.25,2883.9,2882.7,0.5]
[1645185792319,0.25,2883.9,2882.1,6.25614031]
[1645185792320,0.86754,2883.6,2882.1,0.00114031]
[1645185792520,0.86754,2883.6,2882.2,0.5]
[1645185792919,0.86754,2883.6,2882.3,3.6734]
[1645185793123,0.121474,2883.7,2882.5,5.0]
[1645185793324,0.86707,2885.0,2882.8,0.00114003]
[1645185793520,1.98418,2885.2,2882.8,0.00114003]
[1645185793521,0.91094372,2884.9,2884.1,0.92560493]
[1645185793721,0.91094372,2884.9,2883.1,5.0]
[1645185793963,0.91094372,2884.9,2883.2,4.5]
[1645185793964,0.25,2884.8,2883.2,4.5]
[1645185794165,0.371474,2884.8,2883.3,0.5]
[1645185794362,0.371474,2884.8,2883.9,0.00113959]
[1645185794571,0.371474,2884.8,2884.0,20.69]
[1645185794572,0.007274,2884.8,2884.0,20.69]
[1645185794775,4.372e-05,2884.9,2884.1,23.69]
[1645185794969,6.8793026,2885.8,2884.6,5.5]
[1645185795170,1.73328,2886.8,2884.9,6.255]
[1645185795470,1.14978412,2886.0,2885.4,0.92520802]
[1645185795667,1.14978412,2886.0,2885.5,0.5]
[1645185795874,1.14978412,2886.0,2885.4,0.5]
[1645185796071,1.14978412,2886.0,2884.4,0.00243485]
[1645185796272,1.73396,2885.8,2884.4,0.00243485]
[1645185796469,1.73396,2885.8,2883.8,1.0]
[1645185796470,0.5,2885.7,2883.9,3.5]
[1645185796671,0.5,2885.7,2883.4,3.6159]
[1645185796672,0.92800371,2884.5,2883.6,4.5]
[1645185796871,0.92800371,2884.5,2883.6,1.3]
[1645185797068,0.5,2885.1,2883.6,1.3]
[1645185797271,0.5,2885.4,2883.7,3.5]
[1645185797472,0.3,2885.3,2883.7,0.3]
[1645185797717,0.8,2885.4,2883.8,1.0]
[1645185797919,1.73432,2884.9,2884.4,0.00243483]
[1645185798120,1.77097587,2884.8,2884.4,0.00243483]
[1645185798524,2.77097587,2884.8,2884.4,0.00243483]
[1645185798718,1.47097587,2884.8,2884.4,0.00243483]
[1645185798921,1.47097587,2884.8,2882.9,23.69]
[1645185798922,0.5,2885.4,2884.3,0.2643]
[1645185799124,1.73377,2885.9,2884.3,0.4725]
[1645185799321,1.73377,2885.9,2883.6,0.01220812]
[1645185799322,0.5,2885.8,2883.9,3.5]
[1645185799520,0.64817625,2885.8,2883.3,3.5]
[1645185799720,0.64817625,2885.8,2882.8,3.5]
[1645185799721,5.8669938,2885.7,2882.8,3.5]
[1645185799923,1.15525041,2884.3,2882.8,3.5]
[1645185800126,1.15525041,2884.3,2882.1,1.1785]
[1645185800426,1.15525041,2884.3,2881.6,3.15318679]
[1645185800427,4.0,2884.2,2881.6,3.15318679]
[1645185800625,5.0,2883.3,2881.6,3.15318679]
[1645185800827,0.8678287,2883.0,2881.6,3.15318679]
[1645185801028,0.87384794,2881.7,2881.6,3.15318679]
[1645185801468,2.60467,2882.1,2881.6,3.15318679]
[1645185801673,0.1353,2882.6,2881.6,3.15318679]
[1645185801971,2.6044,2882.7,2881.6,3.15318679]
[1645185801972,0.3,2882.7,2881.6,3.15318679]
[1645185802173,0.86792,2882.5,2881.6,3.15318679]
[1645185802371,0.92675713,2882.1,2881.6,3.15318679]
[1645185802873,1.22675713,2882.1,2882.0,0.0011403]
[1645185803071,1.22675713,2882.1,2881.6,3.15318679]
[1645185803472,3.5,2882.0,2881.6,3.15318679]
[1645185803681,3.5,2882.0,2879.9,0.01242737]
[1645185803878,3.5,2882.0,2878.9,0.01210157]
[1645185803879,0.86825,2881.6,2878.9,0.01210157]
[1645185804075,3.8,2881.5,2878.9,0.01210157]
[1645185804273,0.8684,2881.4,2879.1,5.0]
[1645185804476,3.8,2881.5,2879.2,1.47917657]
[1645185804676,1.12364221,2880.9,2880.2,1.07431808]
[1645185804876,3.77399997,2881.9,2880.2,1.07431808]
[1645185804877,1.0,2881.8,2880.2,1.07431808]
[1645185805410,0.3,2881.8,2880.2,1.07431808]
[1645185805613,0.13819997,2881.9,2880.2,1.07431808]
[1645185805912,0.13819997,2881.9,2881.3,0.87342782]
[1645185806113,3.6365,2883.1,2881.3,0.87342782]
[1645185806314,1.73572,2883.4,2881.3,0.87342782]
[1645185806315,3.5,2883.3,2881.3,0.87342782]
[1645185806511,5.8679009,2883.2,2881.3,0.87342782]
[1645185806713,3.6368,2883.1,2881.3,0.87342782]
[1645185806910,0.86786,2882.8,2881.3,0.87342782]
[1645185807111,0.87109836,2882.5,2881.8,0.86519249]
[1645185807315,1.16782,2882.9,2881.8,0.86519249]
[1645185807519,0.3,2882.9,2881.8,1.88249249]
[1645185807718,0.13819997,2883.4,2881.9,0.00243501]
[1645185807914,0.13819997,2883.4,2881.9,0.17583501]
[1645185808114,1.00586997,2883.4,2881.9,0.17583501]
[1645185808316,1.00586997,2883.4,2882.3,1.017951]
[1645185808317,1.06023685,2883.0,2882.3,1.017951]
[1645185808520,1.00586997,2883.4,2881.8,0.1734]
[1645185808724,0.13819997,2883.4,2881.9,0.00243528]
[1645185808976,3.6355,2884.2,2882.0,0.1734]
[1645185809269,0.86742,2884.1,2882.1,1.47818578]
[1645185809473,3.5,2884.0,2882.2,0.1734]
[1645185809674,3.5,2884.0,2881.2,2.85996182]
[1645185809675,1.12188912,2883.3,2882.0,3.6734]
[1645185809875,1.12188912,2883.3,2881.6,3.5]
[1645185810073,1.07188912,2883.3,2881.9,0.00243548]
[1645185810275,1.37188912,2883.3,2882.0,0.1734]
[1645185810674,5.20615,2884.1,2882.7,0.87222765]
[1645185810873,3.07405,2884.8,2882.8,0.1734]
[1645185810874,1.86026,2884.7,2882.8,0.1734]
[1645185811073,1.86026,2884.7,2882.8,3.6734]
[1645185811271,1.86026,2884.7,2882.8,0.1734]
[1645185811476,1.86026,2884.7,2882.8,3.6734]
[1645185811672,1.86026,2884.7,2883.9,1.08854531]
[1645185811876,2.74064997,2884.8,2883.5,3.5]
[1645185811877,0.13819997,2884.8,2883.5,3.5]
[1645185812073,0.13819997,2884.8,2883.3,3.5]
[1645185812273,0.13819997,2884.8,2883.1,3.6733]
[1645185812606,0.13819997,2884.8,2883.1,0.1733]
[1645185812906,0.8674,2884.3,2883.1,0.1733]
[1645185813103,1.12273096,2883.8,2883.1,1.32242019]
[1645185813909,1.42273096,2883.8,2883.1,1.32242019]
[1645185814111,1.0,2884.2,2883.1,1.32242019]
[1645185814112,1.0,2884.2,2883.1,1.62242019]
[1645185814307,0.3,2884.2,2883.2,3.5]
[1645185814509,0.1305,2884.7,2883.1,1.32242019]
[1645185814909,7.7327813,2884.7,2883.1,1.32242019]
[1645185815108,1.04802861,2883.8,2882.1,3.5]
[1645185815313,1.04802861,2883.8,2881.9,0.00223051]
[1645185815510,2.04802861,2883.8,2881.9,0.00223051]
[1645185815709,2.04802861,2883.8,2881.6,4.97845105]
[1645185815710,2.34802861,2883.8,2881.6,4.97845105]
[1645185815909,4.95106311,2883.8,2881.6,3.5]
[1645185816110,0.8676,2883.7,2882.1,1.05084623]
[1645185816358,3.9028045,2883.8,2882.1,1.05084623]
[1645185816560,0.8676,2883.7,2882.1,1.05084623]
[1645185816764,5.8676,2883.7,2881.9,0.00215493]
[1645185816965,5.8677273,2883.4,2881.5,3.5]
[1645185817164,5.8677273,2883.4,2880.3,7.3491]
[1645185817165,5.0,2882.6,2880.3,7.3491]
[1645185817362,2.00827,2882.3,2881.9,0.00216863]
[1645185817558,2.00827,2882.3,2880.4,1.4789536]
[1645185817762,2.00827,2882.3,2880.3,0.9862395]
[1645185817763,0.97841051,2881.0,2880.3,0.9862395]
[1645185817963,0.86825,2881.2,2880.3,0.9862395]
[1645185818364,1.16825,2881.2,2880.3,0.9862395]
[1645185818764,0.3,2881.2,2879.6,0.01234607]
[1645185818971,0.3,2881.2,2879.5,3.51438258]
[1645185818972,0.86831,2881.0,2879.5,3.51438258]
[1645185819169,0.9063,2881.2,2879.5,3.51438258]
[1645185819170,3.5,2880.9,2879.5,3.51438258]
[1645185819370,0.6063,2881.2,2878.7,2.36688258]
[1645185819371,0.86865,2880.6,2878.7,2.36688258]
[1645185819565,0.86865,2880.6,2880.1,0.00094715]
[1645185819566,0.86866,2880.3,2880.1,0.00094715]
[1645185819765,0.85292093,2880.2,2880.1,0.00094715]
[1645185820213,1.85292093,2880.2,2880.1,4.715e-05]
[1645185820612,0.86878,2879.9,2877.8,2.36688258]
[1645185820919,0.86878,2879.9,2878.0,21.66995467]
[1645185820920,0.86894,2879.9,2878.0,21.66995467]
[1645185821117,0.85292093,2880.2,2879.2,1.07483486]
[1645185821320,1.0,2880.8,2880.5,1.57827728]
[1645185821516,0.3,2880.6,2880.5,1.57827728]
[1645185821919,0.8684,2880.8,2880.5,1.57827728]
[1645185822114,1.1684,2880.8,2880.5,1.57827728]
[1645185822318,1.1684,2880.8,2880.5,1.426e-05]
[1645185822525,1.1684,2880.8,2878.8,3.94379123]
[1645185822526,3.5,2880.7,2878.8,2.36688258]
[1645185822915,1.73787,2880.0,2878.8,2.36688258]
[1645185823114,0.86889,2879.8,2878.3,2.3818]
[1645185823315,0.86889,2879.8,2879.6,0.00113171]
[1645185823518,1.86889,2879.8,2879.6,0.00113171]
[1645185823717,0.1355,2880.1,2879.6,0.00113171]
[1645185823968,0.86849,2880.7,2879.6,0.00113171]
[1645185824165,1.16849,2880.7,2879.3,0.1736]
[1645185824365,0.3,2880.5,2878.7,0.1736]
[1645185824671,1.00253768,2880.1,2879.7,0.00243323]
[1645185825267,3.5,2880.0,2879.7,0.00243323]
[1645185825468,3.5,2880.0,2878.5,4.73508149]
[1645185825667,0.2441,2880.2,2879.8,0.00243321]
[1645185825870,1.0,2879.9,2879.8,0.00243321]
[1645185826066,0.3,2880.0,2879.8,0.00243321]
[1645185826265,0.3,2880.2,2879.8,0.00243321]
[1645185826564,0.86865,2880.1,2878.4,0.1736]
[1645185826764,1.16865,2880.1,2878.4,1.04223]
[1645185826964,1.16865,2880.1,2878.4,1.96608972]
[1645185827173,0.86866,2880.0,2878.4,1.09745972]
[1645185827912,0.86866,2880.0,2878.4,1.96609972]
[1645185828118,3.6355,2880.7,2879.1,0.00243083]
[1645185828316,0.13819997,2881.5,2879.2,20.19]
[1645185828317,1.73692,2881.0,2879.2,20.19]
[1645185828513,0.1355,2881.4,2879.1,1.26093083]
[1645185828514,3.5,2881.2,2879.1,1.26093083]
[1645185828715,3.5,2881.1,2879.1,1.26093083]
[1645185828919,0.86827,2881.4,2879.5,0.86832]
[1645185829118,0.86827,2881.4,2880.0,0.9890255]
[1645185829119,1.19481254,2880.8,2880.0,0.9890255]
[1645185829321,0.86827,2881.4,2880.0,0.99145596]
[1645185829521,0.86827,2881.4,2880.0,0.00243046]
[1645185830121,0.86827,2881.4,2879.7,0.86824]
[1645185830322,1.87481997,2881.5,2879.6,1.0]
[1645185830323,0.13819997,2881.5,2879.6,1.0]
[1645185830525,1.06770056,2880.9,2880.3,0.00243049]
[1645185831356,1.06770056,2880.9,2879.6,1.0]
[1645185831558,1.06770056,2880.9,2880.3,0.00243045]
[1645185832564,1.06770056,2880.9,2879.7,1.47929757]
[1645185832765,0.13819997,2881.5,2880.3,0.00243045]
[1645185833768,0.1355,2882.4,2880.8,0.90585538]
[1645185833970,0.0097148,2882.5,2881.2,0.86783]
[1645185834967,1.09950503,2882.2,2881.4,1.17051687]
[1645185835409,1.09950503,2882.2,2881.2,0.86783]
[1645185835608,1.09950503,2882.2,2881.5,0.86773]
[1645185835812,1.09950503,2882.2,2881.2,0.86783]
[1645185836013,1.09950503,2882.2,2880.4,3.0845]
[1645185836014,3.5,2882.1,2880.4,3.0845]
[1645185836210,3.5,2882.1,2880.5,1.47904077]
[1645185836408,3.5,2882.1,2880.1,0.3]
[1645185836409,0.86804,2882.0,2880.4,1.47904077]
[1645185836608,0.01285003,2882.6,2880.8,0.92908416]
[1645185836609,0.92175386,2881.6,2880.8,0.92908416]
[1645185836807,0.92175386,2881.6,2880.3,0.00243094]
[1645185837011,0.8682,2881.5,2880.3,0.00243094]
[1645185837210,0.92175386,2881.6,2880.3,0.00243094]
[1645185837409,0.92175386,2881.6,2880.2,1.77912044]
[1645185837613,0.92175386,2881.6,2880.3,1.48155102]
[1645185838016,0.92175386,2881.6,2880.7,1.10724274]
[1645185838316,0.86796,2882.1,2880.7,22.16524274]
[1645185838516,1.74877003,2882.6,2880.7,22.16524274]
[1645185838517,3.5,2882.6,2880.8,21.66889964]
[1645185838715,3.10015455,2883.4,2880.9,21.6689164]
[1645185838716,3.6355,2883.3,2880.9,21.6689164]
[1645185838974,3.6355,2883.3,2881.0,21.6689164]
[1645185838975,0.00971525,2882.5,2881.0,21.6689164]
[1645185839172,0.00971525,2882.5,2881.3,21.05766]
[1645185839372,0.00971525,2882.5,2881.8,0.88006937]
[1645185839776,1.04098391,2882.6,2881.0,1.6009]
[1645185840078,1.04098391,2882.6,2880.4,1.0]
[1645185840279,1.04098391,2882.6,2880.7,1.73581]
[1645185840280,0.86786,2882.3,2880.7,1.73581]
[1645185840474,0.86786,2882.3,2880.5,1.7846]
[1645185840475,0.86786,2882.3,2880.8,1.47894137]
[1645185840675,1.00459724,2881.7,2880.9,0.88366681]
[1645185841379,1.06443145,2882.0,2881.8,0.57296645]
[1645185842817,3.5,2881.9,2880.5,2.8968]
[1645185843015,3.5,2881.9,2880.3,0.00243103]
[1645185843016,0.86817,2881.8,2880.3,0.00243103]
[1645185843211,3.5,2881.7,2880.3,0.00243103]
[1645185843409,0.86829,2881.5,2880.0,1.47936502]
[1645185843611,3.5,2881.4,2880.3,0.00243065]
[1645185843811,1.06899276,2881.0,2880.3,0.00243065]
[1645185844613,1.06899276,2881.0,2879.5,1.47947917]
[1645185844614,1.06899276,2881.0,2879.8,0.86829]
[1645185844815,1.06899276,2881.0,2880.3,0.00243047]
[1645185845014,1.93726276,2881.0,2880.3,0.00243047]
[1645185845814,1.93726276,2881.0,2880.0,1.15429373]
[1645185846014,1.93726276,2881.0,2880.3,0.00243047]
[1645185846216,1.06899276,2881.0,2880.3,0.00243047]
[1645185846464,0.86817,2881.3,2880.3,0.00243047]
[1645185847063,0.86817,2881.3,2880.0,1.15429373]
[1645185847264,0.86808,2881.5,2880.3,0.00243054]
[1645185847463,3.5,2881.6,2880.3,0.00243054]
[1645185847464,1.04665405,2881.2,2880.3,0.00243054]
[1645185847665,1.04665405,2881.2,2880.5,0.95894565]
[1645185847862,1.0,2881.5,2880.5,0.95894565]
[1645185848270,0.86802,2881.7,2880.6,0.86805]
[1645185848470,1.0,2881.9,2880.6,0.86805]
[1645185848671,3.10020093,2882.4,2880.7,0.1734]
[1645185848869,3.10020093,2882.4,2881.6,0.89505718]
[1645185849070,0.97928865,2882.5,2881.6,0.89505718]
[1645185849270,2.71503395,2882.5,2881.6,0.89505718]
[1645185849468,2.70531897,2882.5,2881.1,1.73563]
[1645185849968,1.83747367,2882.5,2881.1,1.73563]
[1645185850511,1.73576,2882.3,2881.0,1.73564]
[1645185850718,1.10663473,2882.0,2881.1,1.01032328]
[1645185851114,1.0,2882.3,2881.1,0.83692328]
[1645185851314,0.3,2882.3,2881.1,0.83692328]
[1645185851520,0.86783,2882.3,2881.1,1.13692328]
[1645185851715,0.00971642,2882.5,2881.2,0.1734]
[1645185851917,3.23810628,2883.3,2881.7,0.86772]
[1645185852121,0.13819997,2883.3,2882.2,1.01793746]
[1645185852318,0.00971624,2882.5,2881.8,0.1734]
[1645185852619,1.7357311,2882.4,2881.8,0.1734]
[1645185852816,0.86789,2882.3,2881.3,0.1734]
[1645185853019,0.86789,2882.3,2881.0,0.1734]
[1645185853518,1.11113094,2882.2,2881.3,0.96476042]
[1645185854168,0.86789,2882.3,2881.3,0.96476042]
[1645185854468,0.8677786,2882.5,2881.3,0.96476042]
[1645185854765,0.8769092,2882.5,2881.5,0.86776]
[1645185854965,0.0091306,2882.5,2881.5,0.86776]
[1645185855164,0.0091306,2882.5,2881.8,1.05325727]
[1645185855568,0.86771,2882.6,2881.8,1.05325727]
[1645185855767,0.87684081,2882.6,2881.8,1.05325727]
[1645185856167,0.87684081,2882.6,2881.0,0.1734]
[1645185856168,1.74457871,2882.6,2881.0,0.1734]
[1645185856367,3.5,2882.5,2881.1,1.47872922]
[1645185856568,0.86796,2881.9,2881.1,1.47872922]
[1645185857170,1.7358732,2882.2,2881.4,1.08500986]
[1645185857369,1.7358732,2882.2,2881.0,0.1734]
[1645185857610,0.8678851,2882.0,2881.1,1.47879753]
[1645185857813,1.09401561,2882.3,2881.2,0.86784]
[1645185858011,1.7356573,2882.5,2881.2,0.86784]
[1645185858210,1.74462382,2882.5,2881.2,0.86784]
[1645185858408,3.48031382,2882.5,2881.0,0.1734]
[1645185858614,3.48031382,2882.5,2881.1,1.47876395]
[1645185858615,1.7357817,2882.2,2881.1,1.47876395]
[1645185858811,1.7357343,2882.4,2881.1,2.34663395]
[1645185859015,1.7357343,2882.4,2881.2,1.47876395]
[1645185859213,2.6325253,2882.4,2881.5,0.97630533]
[1645185859713,1.73578,2882.3,2881.5,0.97630533]
[1645185859916,0.86794,2882.2,2881.5,0.97630533]
[1645185860114,1.73578,2882.3,2881.0,0.1734]
[1645185860115,1.7357772,2882.1,2881.0,0.1734]
[1645185860318,0.86791,2882.1,2881.1,1.4788017]
[1645185860517,1.73578,2882.3,2881.1,1.4788017]
[1645185860916,2.60368,2882.3,2881.1,1.4788017]
[1645185861119,0.86787,2882.2,2881.1,2.3467017]